{"text_format":"3","workbook":"xlsx","n_sheets":2,"sheets":["Bảng theo dõi RSVP","Tóm tắt RSVP"],"not_rendered":{"charts":2,"defined_names":22},"read":"whole","date_system":"1900"}

{"sheet":"Bảng theo dõi RSVP","index":0,"n_rows":15,"n_cols":15,"rows_kept":15,"merged":[[0,3,0,4],[0,5,0,7]]}
[{"$nulls":5},"TÓM TẮT RSVP"]
[null,"NGÀY CƯỚI",null,"bảng theo dõi lời mời dự đám cưới"]
[null,{"$f":"TODAY()+283","v":"2023-05-21"},null,"TÊN KHÁCH","ĐÃ GỬI?","RSVP","TIỆC","KHÁCH","MỐI QUAN HỆ","ĐỊA CHỈ","THÀNH PHỐ","TIỂU BANG","MÃ ZIP","ĐIỆN THOẠI","EMAIL LIÊN HỆ"]
[null,"SỐ NGÀY CÒN LẠI",null,"Tên 1","Có","Có",1,"Cô dâu/Chú rể 1","Anh/Em trai","Địa chỉ","Thành phố","Tiểu bang","Mã ZIP","Điện thoại","ai_do@example.com"]
[null,{"$f":"Số_ngày_còn_lại","v":283},null,"Tên 2","Có","Không",3,"Cô dâu/Chú rể 1","Bạn bè","Địa chỉ","Thành phố","Tiểu bang","Mã ZIP","Điện thoại","ai_do@example.com"]
[null,"THAM DỰ",null,"Tên 3","Có","Có",1,"Khác","Bạn bè","Địa chỉ","Thành phố","Tiểu bang","Mã ZIP","Điện thoại","ai_do@example.com"]
[null,{"$f":"Tổng_số_tham_dự","v":12},null,"Tên 4","Có","Không",2,"Cô dâu/Chú rể 2","Bạn bè","Địa chỉ","Thành phố","Tiểu bang","Mã ZIP","Điện thoại","ai_do@example.com"]
[null,"KHÔNG THAM DỰ",null,"Tên 5","Có","Có",2,"Cô dâu/Chú rể 2","Bạn bè","Địa chỉ","Thành phố","Tiểu bang","Mã ZIP","Điện thoại","ai_do@example.com"]
[null,{"$f":"Tổng_số_không_tham_dự","v":6},null,"Tên 6","Có","Dự định",null,"Khác","Bạn bè","Địa chỉ","Thành phố","Tiểu bang","Mã ZIP","Điện thoại","ai_do@example.com"]
[null,"CHƯA CÓ CÂU TRẢ LỜI",null,"Tên 7","Có","Có",2,"Cô dâu/Chú rể 2","Bạn bè","Địa chỉ","Thành phố","Tiểu bang","Mã ZIP","Điện thoại","ai_do@example.com"]
[null,{"$f":"Chưa_trả_lời_RSVP","v":1},null,"Tên 8","Có","Không",1,"Khác","Bạn bè","Địa chỉ","Thành phố","Tiểu bang","Mã ZIP","Điện thoại","ai_do@example.com"]
[{"$nulls":3},"Tên 9","Có","Có",4,"Cô dâu/Chú rể 1","Bạn bè","Địa chỉ","Thành phố","Tiểu bang","Mã ZIP","Điện thoại","ai_do@example.com"]
[{"$nulls":3},"Tên 10","Có","Có",2,"Cô dâu/Chú rể 1","Bạn bè","Địa chỉ","Thành phố","Tiểu bang","Mã ZIP","Điện thoại","ai_do@example.com"]
[{"$nulls":3},"Tên 11","Có",null,null,"Cô dâu/Chú rể 2","Anh/Em trai","Địa chỉ","Thành phố","Tiểu bang","Mã ZIP","Điện thoại","ai_do@example.com"]
[{"$nulls":3},"TỔNG:",{"$f":"COUNTIF('Bảng theo dõi RSVP'!$E$4:$E$14,\"Có\")","v":11},{"$f":"COUNTA('Bảng theo dõi RSVP'!$F$4:$F$14)","v":10},{"$f":"SUBTOTAL(109,bảng_lời_mời[TIỆC])","v":18}]

{"sheet":"Tóm tắt RSVP","index":1,"n_rows":11,"n_cols":15,"rows_kept":11,"merged":[[0,3,0,4],[0,5,0,8],[2,3,6,3],[2,4,6,4],[7,3,11,3],[7,4,11,4]]}
[{"$nulls":3},"BẢNG THEO DÕI RSVP"]
[null,"NGÀY CƯỚI",null,"tóm tắt rsvp",{"$nulls":10},"ghi chú"]
[null,{"$f":"Ngày_cưới","v":"2023-05-21"},null,"CÓ","Ô này chứa sơ đồ thanh ghép cụm hiển thị các loại Khách đã gửi RSVP là Có."]
[null,"SỐ NGÀY CÒN LẠI",{"$nulls":3},"KHÁC",{"$f":"IFERROR(SUMIFS(bảng_lời_mời[TIỆC],bảng_lời_mời[KHÁCH],\"=Khác\",bảng_lời_mời[RSVP],\"Có\"),0)","v":1},{"$f":"bảng_lời_mời[[#Totals],[ĐÃ GỬI?]]","v":11}]
[null,{"$f":"Số_ngày_còn_lại","v":283},{"$nulls":3},"CÔ DÂU/CHÚ RỂ 2",{"$f":"IFERROR(SUMIFS(bảng_lời_mời[TIỆC],bảng_lời_mời[KHÁCH],\"=Cô dâu/Chú rể 2\",bảng_lời_mời[RSVP],\"Có\"),0)","v":4},{"$f":"bảng_lời_mời[[#Totals],[ĐÃ GỬI?]]","v":11}]
[null,"THAM DỰ",{"$nulls":3},"CÔ DÂU/CHÚ RỂ 1",{"$f":"IFERROR(SUMIFS(bảng_lời_mời[TIỆC],bảng_lời_mời[KHÁCH],\"=Cô dâu/Chú rể 1\",bảng_lời_mời[RSVP],\"Có\"),0)","v":7},{"$f":"bảng_lời_mời[[#Totals],[ĐÃ GỬI?]]","v":11}]
[null,{"$f":"Tổng_số_tham_dự","v":12}]
[null,"KHÔNG THAM DỰ",null,"KHÔNG","Ô này chứa sơ đồ thanh ghép cụm hiển thị các loại Khách đã gửi RSVP là Không."]
[null,{"$f":"Tổng_số_không_tham_dự","v":6},{"$nulls":3},"KHÁC",{"$f":"IFERROR(SUMIFS(bảng_lời_mời[TIỆC],bảng_lời_mời[KHÁCH],\"=Khác\",bảng_lời_mời[RSVP],\"Không\"),0)","v":1},{"$f":"bảng_lời_mời[[#Totals],[ĐÃ GỬI?]]","v":11}]
[null,"CHƯA CÓ CÂU TRẢ LỜI",{"$nulls":3},"CÔ DÂU/CHÚ RỂ 2",{"$f":"IFERROR(SUMIFS(bảng_lời_mời[TIỆC],bảng_lời_mời[KHÁCH],\"=Cô dâu/Chú rể 2\",bảng_lời_mời[RSVP],\"Không\"),0)","v":2},{"$f":"bảng_lời_mời[[#Totals],[ĐÃ GỬI?]]","v":11}]
[null,{"$f":"Chưa_trả_lời_RSVP","v":1},{"$nulls":3},"CÔ DÂU/CHÚ RỂ 1",{"$f":"IFERROR(SUMIFS(bảng_lời_mời[TIỆC],bảng_lời_mời[KHÁCH],\"=Cô dâu/Chú rể 1\",bảng_lời_mời[RSVP],\"Không\"),0)","v":3},{"$f":"bảng_lời_mời[[#Totals],[ĐÃ GỬI?]]","v":11}]